[Event "Titled Tuesday Blitz November 07 Early 2023"]
[White "topce"]
[Black "SlippperyWhenWet"]
[WhiteElo "2507"]
[BlackElo "2336"]
[Result "1-0"]
[Round "9"]
[TimeControl "180+1"]
[Date "2023.11.07"]
[WhiteClock "0:01:33"]
[BlackClock "0:00:23"]
[Board "116"]

1. c4 {[%clk 0:02:50]}  c5 {[%clk 0:02:59]} 2. Nc3 {[%clk 0:02:50]}  Nc6 {[%clk 0:02:58]} 3. g3 {[%clk 0:02:50]}  g6 {[%clk 0:02:58]} 4. Bg2 {[%clk 0:02:51]}  Bg7 {[%clk 0:02:59]} 5. d3 {[%clk 0:02:51]}  e6 {[%clk 0:02:57]} 6. Bf4 {[%clk 0:02:51]}  d6 {[%clk 0:02:54]} 7. Qc1 {[%clk 0:02:48]}  Nge7 {[%clk 0:02:52]} 8. Bh6 {[%clk 0:02:47]}  Bxh6 {[%clk 0:02:51]} 9. Qxh6 {[%clk 0:02:46]}  Nf5 {[%clk 0:02:49]} 10. Qd2 {[%clk 0:02:47]}  Bd7 {[%clk 0:02:44]} 11. e3 {[%clk 0:02:44]}  a6 {[%clk 0:02:44]} 12. Nge2 {[%clk 0:02:45]}  O-O {[%clk 0:02:42]} 13. O-O {[%clk 0:02:43]}  e5 {[%clk 0:02:34]} 14. b3 {[%clk 0:02:42]}  Be6 {[%clk 0:02:33]} 15. Rad1 {[%clk 0:02:40]}  Nfe7 {[%clk 0:02:27]} 16. d4 {[%clk 0:02:40]}  cxd4 {[%clk 0:02:22]} 17. exd4 {[%clk 0:02:41]}  exd4 {[%clk 0:02:09]} 18. Nxd4 {[%clk 0:02:42]}  Nxd4 {[%clk 0:02:09]} 19. Qxd4 {[%clk 0:02:41]}  Nc8 {[%clk 0:02:07]} 20. Bxb7 {[%clk 0:02:39]}  Rb8 {[%clk 0:02:03]} 21. Bxa6 {[%clk 0:02:38]}  Qa5 {[%clk 0:01:48]} 22. Bb5 {[%clk 0:02:34]}  Ne7 {[%clk 0:01:40]} 23. Ne4 {[%clk 0:02:33]}  Nf5 {[%clk 0:01:39]} 24. Nf6+ {[%clk 0:02:31]}  Kh8 {[%clk 0:01:37]} 25. Qa1 {[%clk 0:02:30]}  Ng7 {[%clk 0:01:37]} 26. Rxd6 {[%clk 0:02:27]}  Bh3 {[%clk 0:01:31]} 27. Rfd1 {[%clk 0:02:26]}  Rxb5 {[%clk 0:01:29]} 28. cxb5 {[%clk 0:02:25]}  Qa8 {[%clk 0:01:29]} 29. Nd5 {[%clk 0:02:20]}  Qa3 {[%clk 0:01:25]} 30. Qf6 {[%clk 0:02:16]}  Be6 {[%clk 0:01:04]} 31. Rd8 {[%clk 0:02:05]}  h5 {[%clk 0:00:54]} 32. Ne7 {[%clk 0:01:59]}  Rxd8 {[%clk 0:00:50]} 33. Rxd8+ {[%clk 0:01:57]}  Kh7 {[%clk 0:00:51]} 34. Rg8 {[%clk 0:01:51]}  Qc1+ {[%clk 0:00:32]} 35. Kg2 {[%clk 0:01:49]}  Qh6 {[%clk 0:00:29]} 36. Rxg7+ {[%clk 0:01:33]}  Qxg7 {[%clk 0:00:29]} 37. Qxg7+ {[%clk 0:01:34]}  Kxg7 {[%clk 0:00:30]} 38. b6 {[%clk 0:01:34]}  Kf6 {[%clk 0:00:29]} 39. b7 {[%clk 0:01:34]}  Kg5 {[%clk 0:00:29]} 40. b8=Q {[%clk 0:01:34]}  f5 {[%clk 0:00:30]} 41. Qf4+ {[%clk 0:01:33]}  Kf6 {[%clk 0:00:30]} 42. Qd6 {[%clk 0:01:33]}  h4 {[%clk 0:00:29]} 43. Nd5+ {[%clk 0:01:33]}  Kg5 {[%clk 0:00:28]} 44. Qe7+ {[%clk 0:01:33]}  Kh6 {[%clk 0:00:24]} 45. Qxh4+ {[%clk 0:01:33]}  Kg7 {[%clk 0:00:24]} 46. Qf6+ {[%clk 0:01:34]}  Kh6 {[%clk 0:00:25]} 47. Qxe6 {[%clk 0:01:34]}  Kh5 {[%clk 0:00:25]} 48. Nf4+ {[%clk 0:01:32]}  Kg5 {[%clk 0:00:23]} 49. Qxg6# {[%clk 0:01:33]} 1-0


[Site "https://www.chess.com"]

[Event "Titled Tuesday Blitz November 07 Early 2023"]
[White "Petrova, Irina"]
[Black "Bazilius, Augustinas"]
[WhiteFideId "14124122"]
[BlackFideId "12832251"]
[WhiteElo "2320"]
[BlackElo "2496"]
[Result "1-0"]
[Round "9"]
[TimeControl "180+1"]
[Date "2023.11.07"]
[WhiteClock "0:01:26"]
[BlackClock "0:00:17"]
[Board "118"]

1. e4 {[%clk 0:03:00]}  c5 {[%clk 0:03:00]} 2. Nf3 {[%clk 0:03:00]}  a6 {[%clk 0:03:00]} 3. c4 {[%clk 0:02:59]}  e6 {[%clk 0:03:00]} 4. Nc3 {[%clk 0:02:59]}  Qc7 {[%clk 0:02:59]} 5. Be2 {[%clk 0:02:58]}  d6 {[%clk 0:02:56]} 6. d4 {[%clk 0:02:56]}  cxd4 {[%clk 0:02:54]} 7. Nxd4 {[%clk 0:02:56]}  Nf6 {[%clk 0:02:52]} 8. O-O {[%clk 0:02:56]}  Nbd7 {[%clk 0:02:52]} 9. Be3 {[%clk 0:02:56]}  Be7 {[%clk 0:02:46]} 10. f3 {[%clk 0:02:55]}  O-O {[%clk 0:02:43]} 11. Qd2 {[%clk 0:02:56]}  b6 {[%clk 0:02:42]} 12. Rfc1 {[%clk 0:02:55]}  Bb7 {[%clk 0:02:42]} 13. a4 {[%clk 0:02:56]}  Rac8 {[%clk 0:02:40]} 14. a5 {[%clk 0:02:55]}  bxa5 {[%clk 0:02:36]} 15. Nb3 {[%clk 0:02:55]}  Qb8 {[%clk 0:02:20]} 16. Nxa5 {[%clk 0:02:55]}  Ba8 {[%clk 0:02:18]} 17. b4 {[%clk 0:02:47]}  Ne5 {[%clk 0:02:13]} 18. b5 {[%clk 0:02:37]}  axb5 {[%clk 0:02:10]} 19. cxb5 {[%clk 0:02:34]}  Rfd8 {[%clk 0:02:08]} 20. Na4 {[%clk 0:02:22]}  Rxc1+ {[%clk 0:02:05]} 21. Rxc1 {[%clk 0:02:21]}  d5 {[%clk 0:02:05]} 22. Nc6 {[%clk 0:02:16]}  Bxc6 {[%clk 0:02:01]} 23. bxc6 {[%clk 0:02:17]}  Nxc6 {[%clk 0:01:43]} 24. Rxc6 {[%clk 0:02:12]}  dxe4 {[%clk 0:01:44]} 25. Qc1 {[%clk 0:02:09]}  exf3 {[%clk 0:01:39]} 26. Bxf3 {[%clk 0:02:10]}  Qb3 {[%clk 0:01:37]} 27. Nc5 {[%clk 0:02:02]}  Qb5 {[%clk 0:01:24]} 28. Ne4 {[%clk 0:01:42]}  Nxe4 {[%clk 0:01:11]} 29. Bxe4 {[%clk 0:01:43]}  Qa4 {[%clk 0:00:47]} 30. Bf3 {[%clk 0:01:38]}  h6 {[%clk 0:00:38]} 31. Rc8 {[%clk 0:01:37]}  Kh7 {[%clk 0:00:29]} 32. Rxd8 {[%clk 0:01:36]}  Bxd8 {[%clk 0:00:30]} 33. h3 {[%clk 0:01:35]}  Bf6 {[%clk 0:00:26]} 34. Bd1 {[%clk 0:01:26]}  Qe4 {[%clk 0:00:17]} 35. Bc2 {[%clk 0:01:26]} 1-0


[Site "https://www.chess.com"]

[Event "Titled Tuesday Blitz November 07 Early 2023"]
[White "Filip, Andrei"]
[Black "Schut, Han"]
[WhiteFideId "1249452"]
[BlackFideId "1005561"]
[WhiteElo "2417"]
[BlackElo "2302"]
[Result "1-0"]
[Round "9"]
[TimeControl "180+1"]
[Date "2023.11.07"]
[WhiteClock "0:00:20"]
[BlackClock "0:00:00"]
[Board "122"]

1. c4 {[%clk 0:03:00]}  Nf6 {[%clk 0:02:59]} 2. Nf3 {[%clk 0:02:59]}  g6 {[%clk 0:02:58]} 3. b3 {[%clk 0:02:54]}  Bg7 {[%clk 0:02:58]} 4. Bb2 {[%clk 0:02:55]}  O-O {[%clk 0:02:58]} 5. g3 {[%clk 0:02:54]}  d5 {[%clk 0:02:58]} 6. cxd5 {[%clk 0:02:54]}  Nxd5 {[%clk 0:02:59]} 7. Bxg7 {[%clk 0:02:54]}  Kxg7 {[%clk 0:03:00]} 8. Bg2 {[%clk 0:02:54]}  c5 {[%clk 0:02:56]} 9. O-O {[%clk 0:02:54]}  f6 {[%clk 0:02:56]} 10. d4 {[%clk 0:02:50]}  cxd4 {[%clk 0:02:43]} 11. Nxd4 {[%clk 0:02:49]}  a6 {[%clk 0:02:21]} 12. e4 {[%clk 0:02:20]}  Nb6 {[%clk 0:02:09]} 13. Nc3 {[%clk 0:02:19]}  e5 {[%clk 0:02:07]} 14. Nc2 {[%clk 0:02:19]}  Qxd1 {[%clk 0:01:46]} 15. Rfxd1 {[%clk 0:02:18]}  Be6 {[%clk 0:01:45]} 16. Rd6 {[%clk 0:02:16]}  Rc8 {[%clk 0:01:33]} 17. Rxe6 {[%clk 0:01:51]}  Rxc3 {[%clk 0:01:32]} 18. Rxb6 {[%clk 0:01:51]}  Rxc2 {[%clk 0:01:32]} 19. Rxb7+ {[%clk 0:01:51]}  Kh6 {[%clk 0:01:31]} 20. Rd1 {[%clk 0:01:50]}  Nc6 {[%clk 0:01:20]} 21. Rdd7 {[%clk 0:01:49]}  Rh8 {[%clk 0:01:19]} 22. Rbc7 {[%clk 0:01:28]}  Nb4 {[%clk 0:00:53]} 23. Rxc2 {[%clk 0:01:26]}  Nxc2 {[%clk 0:00:53]} 24. Ra7 {[%clk 0:01:23]}  Rd8 {[%clk 0:00:46]} 25. Rxa6 {[%clk 0:01:14]}  Rd1+ {[%clk 0:00:45]} 26. Bf1 {[%clk 0:01:14]}  Ne1 {[%clk 0:00:22]} 27. Rxf6 {[%clk 0:00:40]}  Kg7 {[%clk 0:00:22]} 28. Ra6 {[%clk 0:00:39]}  Nf3+ {[%clk 0:00:21]} 29. Kg2 {[%clk 0:00:39]}  Ne1+ {[%clk 0:00:16]} 30. Kh3 {[%clk 0:00:40]}  h5 {[%clk 0:00:10]} 31. Bc4 {[%clk 0:00:27]}  Nf3 {[%clk 0:00:08]} 32. Ra7+ {[%clk 0:00:21]}  Kh6 {[%clk 0:00:08]} 33. Kg2 {[%clk 0:00:20]}  Ne1+ {[%clk 0:00:07]} 34. Kf1 {[%clk 0:00:21]}  Ra1 {[%clk 0:00:06]} 35. Ke2 {[%clk 0:00:20]}  Nc2 {[%clk 0:00:06]} 36. a4 {[%clk 0:00:19]}  Nd4+ {[%clk 0:00:04]} 37. Kd3 {[%clk 0:00:19]}  Rd1+ {[%clk 0:00:03]} 38. Kc3 {[%clk 0:00:19]}  Rc1+ {[%clk 0:00:03]} 39. Kb4 {[%clk 0:00:20]}  Nc6+ {[%clk 0:00:02]} 40. Kb5 {[%clk 0:00:20]}  Nxa7+ {[%clk 0:00:03]} 41. Kb6 {[%clk 0:00:20]}  Nc8+ {[%clk 0:00:04]} 42. Kc7 {[%clk 0:00:20]}  Ne7 {[%clk 0:00:00]} 43. a5 {[%clk 0:00:20]} 1-0


[Site "https://www.chess.com"]

[Event "Titled Tuesday Blitz November 07 Early 2023"]
[White "Todorovic, Bojan"]
[Black "Kohler, Aran"]
[WhiteFideId "917087"]
[BlackFideId "1002856"]
[WhiteElo "2412"]
[BlackElo "2296"]
[Result "1-0"]
[Round "9"]
[TimeControl "180+1"]
[Date "2023.11.07"]
[WhiteClock "0:00:25"]
[BlackClock "0:00:00"]
[Board "123"]

1. Nf3 {[%clk 0:02:59]}  c6 {[%clk 0:02:59]} 2. e4 {[%clk 0:02:55]}  d5 {[%clk 0:02:58]} 3. Nc3 {[%clk 0:02:55]}  Bg4 {[%clk 0:02:56]} 4. h3 {[%clk 0:02:54]}  Bxf3 {[%clk 0:02:57]} 5. Qxf3 {[%clk 0:02:54]}  e6 {[%clk 0:02:57]} 6. Be2 {[%clk 0:02:54]}  Nf6 {[%clk 0:02:56]} 7. O-O {[%clk 0:02:53]}  dxe4 {[%clk 0:02:55]} 8. Nxe4 {[%clk 0:02:52]}  Nxe4 {[%clk 0:02:52]} 9. Qxe4 {[%clk 0:02:52]}  Qd5 {[%clk 0:02:51]} 10. Qa4 {[%clk 0:02:47]}  Nd7 {[%clk 0:02:48]} 11. Qb3 {[%clk 0:02:37]}  Qxb3 {[%clk 0:02:46]} 12. axb3 {[%clk 0:02:36]}  a6 {[%clk 0:02:41]} 13. d4 {[%clk 0:02:31]}  Bd6 {[%clk 0:02:41]} 14. c3 {[%clk 0:02:24]}  O-O {[%clk 0:02:40]} 15. Be3 {[%clk 0:02:15]}  Rac8 {[%clk 0:02:20]} 16. g3 {[%clk 0:02:14]}  e5 {[%clk 0:02:10]} 17. dxe5 {[%clk 0:02:08]}  Nxe5 {[%clk 0:02:08]} 18. Rfd1 {[%clk 0:02:06]}  Bb8 {[%clk 0:02:05]} 19. Bb6 {[%clk 0:02:01]}  Bc7 {[%clk 0:01:39]} 20. Bc5 {[%clk 0:02:01]}  Rfd8 {[%clk 0:01:36]} 21. Kg2 {[%clk 0:01:56]}  Rxd1 {[%clk 0:01:29]} 22. Rxd1 {[%clk 0:01:56]}  Rd8 {[%clk 0:01:30]} 23. Rxd8+ {[%clk 0:01:50]}  Bxd8 {[%clk 0:01:31]} 24. f4 {[%clk 0:01:49]}  Nd7 {[%clk 0:01:31]} 25. Bd6 {[%clk 0:01:46]}  g6 {[%clk 0:01:04]} 26. g4 {[%clk 0:01:36]}  Bf6 {[%clk 0:00:59]} 27. g5 {[%clk 0:01:34]}  Bg7 {[%clk 0:00:56]} 28. Bg4 {[%clk 0:01:34]}  Nb6 {[%clk 0:00:50]} 29. Kf3 {[%clk 0:01:27]}  Bf8 {[%clk 0:00:43]} 30. Bc7 {[%clk 0:01:25]}  Nd5 {[%clk 0:00:42]} 31. Be5 {[%clk 0:01:23]}  b6 {[%clk 0:00:32]} 32. Ke4 {[%clk 0:01:17]}  Be7 {[%clk 0:00:20]} 33. Bd7 {[%clk 0:01:14]}  b5 {[%clk 0:00:15]} 34. Bxc6 {[%clk 0:01:11]}  Nb6 {[%clk 0:00:16]} 35. Bd4 {[%clk 0:01:07]}  Nc8 {[%clk 0:00:13]} 36. Kd5 {[%clk 0:01:05]}  Nd6 {[%clk 0:00:12]} 37. Bc5 {[%clk 0:01:03]}  Nf5 {[%clk 0:00:13]} 38. Bb7 {[%clk 0:00:55]}  a5 {[%clk 0:00:11]} 39. Bc6 {[%clk 0:00:48]}  Bxc5 {[%clk 0:00:06]} 40. Kxc5 {[%clk 0:00:47]}  Ne3 {[%clk 0:00:07]} 41. Kxb5 {[%clk 0:00:41]}  Nd1 {[%clk 0:00:07]} 42. Kxa5 {[%clk 0:00:40]}  Nxb2 {[%clk 0:00:08]} 43. Be4 {[%clk 0:00:36]}  Kf8 {[%clk 0:00:06]} 44. c4 {[%clk 0:00:33]}  Ke7 {[%clk 0:00:06]} 45. c5 {[%clk 0:00:32]}  f6 {[%clk 0:00:04]} 46. Kb6 {[%clk 0:00:29]}  f5 {[%clk 0:00:03]} 47. Bc2 {[%clk 0:00:26]}  Kd8 {[%clk 0:00:00]} 48. Kb7 {[%clk 0:00:25]} 1-0


[Site "https://www.chess.com"]

[Event "Titled Tuesday Blitz November 07 Early 2023"]
[White "Musalov, Ruslan"]
[Black "Belanoff, Ted"]
[WhiteFideId "4141490"]
[BlackFideId "2070588"]
[WhiteElo "2411"]
[BlackElo "2294"]
[Result "0-1"]
[Round "9"]
[TimeControl "180+1"]
[Date "2023.11.07"]
[WhiteClock "0:00:09"]
[BlackClock "0:00:42"]
[Board "124"]

1. e4 {[%clk 0:03:00]}  d5 {[%clk 0:02:58]} 2. exd5 {[%clk 0:03:00]}  Qxd5 {[%clk 0:02:59]} 3. Nc3 {[%clk 0:03:01]}  Qd6 {[%clk 0:02:59]} 4. Nf3 {[%clk 0:03:01]}  c6 {[%clk 0:03:00]} 5. Be2 {[%clk 0:03:01]}  Bg4 {[%clk 0:03:00]} 6. O-O {[%clk 0:03:02]}  Nd7 {[%clk 0:03:00]} 7. d4 {[%clk 0:03:02]}  Ngf6 {[%clk 0:02:59]} 8. h3 {[%clk 0:02:59]}  Bh5 {[%clk 0:02:59]} 9. Ne5 {[%clk 0:02:36]}  Bxe2 {[%clk 0:02:52]} 10. Qxe2 {[%clk 0:02:36]}  Qxd4 {[%clk 0:02:52]} 11. Nxd7 {[%clk 0:02:37]}  Qxd7 {[%clk 0:02:51]} 12. Bg5 {[%clk 0:02:35]}  e6 {[%clk 0:02:46]} 13. Rad1 {[%clk 0:02:35]}  Qc7 {[%clk 0:02:42]} 14. Bxf6 {[%clk 0:02:29]}  gxf6 {[%clk 0:02:43]} 15. Ne4 {[%clk 0:02:30]}  Be7 {[%clk 0:02:42]} 16. Qg4 {[%clk 0:02:28]}  f5 {[%clk 0:02:40]} 17. Qg7 {[%clk 0:02:27]}  Rf8 {[%clk 0:02:40]} 18. Nf6+ {[%clk 0:02:18]}  Bxf6 {[%clk 0:02:40]} 19. Qxf6 {[%clk 0:02:19]}  Rd8 {[%clk 0:02:40]} 20. c4 {[%clk 0:02:14]}  Rg8 {[%clk 0:02:31]} 21. Qh4 {[%clk 0:01:53]}  Qe7 {[%clk 0:02:15]} 22. Qxh7 {[%clk 0:01:49]}  Qg5 {[%clk 0:02:10]} 23. g3 {[%clk 0:01:35]}  Ke7 {[%clk 0:01:57]} 24. h4 {[%clk 0:01:24]}  Qg4 {[%clk 0:01:51]} 25. Rxd8 {[%clk 0:01:17]}  Rxd8 {[%clk 0:01:48]} 26. Qh6 {[%clk 0:01:12]}  Rg8 {[%clk 0:01:30]} 27. Kh2 {[%clk 0:01:05]}  f4 {[%clk 0:01:24]} 28. Qxf4 {[%clk 0:01:02]}  Qxf4 {[%clk 0:01:23]} 29. gxf4 {[%clk 0:01:03]}  Rg4 {[%clk 0:01:23]} 30. b3 {[%clk 0:00:39]}  Rxh4+ {[%clk 0:01:20]} 31. Kg3 {[%clk 0:00:39]}  Rh8 {[%clk 0:01:21]} 32. Re1 {[%clk 0:00:36]}  Rd8 {[%clk 0:01:20]} 33. Re2 {[%clk 0:00:35]}  Kf6 {[%clk 0:01:19]} 34. Kf3 {[%clk 0:00:32]}  Rd1 {[%clk 0:01:19]} 35. Ke4 {[%clk 0:00:29]}  Rf1 {[%clk 0:01:16]} 36. Rd2 {[%clk 0:00:29]}  Ra1 {[%clk 0:01:15]} 37. f3 {[%clk 0:00:27]}  Re1+ {[%clk 0:01:13]} 38. Kd4 {[%clk 0:00:25]}  Kf5 {[%clk 0:01:09]} 39. Kc5 {[%clk 0:00:23]}  Kxf4 {[%clk 0:01:08]} 40. Rd7 {[%clk 0:00:24]}  f5 {[%clk 0:01:07]} 41. Rxb7 {[%clk 0:00:24]}  Kxf3 {[%clk 0:01:05]} 42. Kxc6 {[%clk 0:00:24]}  e5 {[%clk 0:01:04]} 43. c5 {[%clk 0:00:24]}  e4 {[%clk 0:01:04]} 44. Kd5 {[%clk 0:00:14]}  e3 {[%clk 0:00:59]} 45. Rf7 {[%clk 0:00:14]}  Rd1+ {[%clk 0:00:55]} 46. Ke5 {[%clk 0:00:13]}  e2 {[%clk 0:00:53]} 47. Rxf5+ {[%clk 0:00:12]}  Kg3 {[%clk 0:00:46]} 48. Rg5+ {[%clk 0:00:09]}  Kh4 {[%clk 0:00:42]} 0-1


[Site "https://www.chess.com"]

[Event "Titled Tuesday Blitz November 07 Early 2023"]
[White "LionKing2367890"]
[Black "Osinovsky, Stepan"]
[BlackFideId "4157354"]
[WhiteElo "2259"]
[BlackElo "2401"]
[Result "0-1"]
[Round "9"]
[TimeControl "180+1"]
[Date "2023.11.07"]
[WhiteClock "0:00:00"]
[BlackClock "0:00:29"]
[Board "126"]

1. e4 {[%clk 0:02:57]}  e5 {[%clk 0:02:59]} 2. Nf3 {[%clk 0:02:57]}  Nc6 {[%clk 0:03:00]} 3. Bc4 {[%clk 0:02:57]}  Nf6 {[%clk 0:02:59]} 4. d3 {[%clk 0:02:55]}  Be7 {[%clk 0:02:59]} 5. O-O {[%clk 0:02:55]}  d5 {[%clk 0:02:59]} 6. exd5 {[%clk 0:02:50]}  Nxd5 {[%clk 0:03:00]} 7. Re1 {[%clk 0:02:51]}  Bg4 {[%clk 0:03:00]} 8. h3 {[%clk 0:02:45]}  Bh5 {[%clk 0:03:01]} 9. g4 {[%clk 0:02:36]}  Bg6 {[%clk 0:03:01]} 10. Nxe5 {[%clk 0:02:36]}  Nxe5 {[%clk 0:03:02]} 11. Rxe5 {[%clk 0:02:36]}  Nb6 {[%clk 0:03:03]} 12. Qe2 {[%clk 0:02:24]}  f6 {[%clk 0:03:02]} 13. Re3 {[%clk 0:02:22]}  Nxc4 {[%clk 0:03:03]} 14. dxc4 {[%clk 0:02:22]}  Kf7 {[%clk 0:02:59]} 15. Nc3 {[%clk 0:02:19]}  Bc5 {[%clk 0:02:46]} 16. Rg3 {[%clk 0:02:18]}  Qd7 {[%clk 0:02:27]} 17. Be3 {[%clk 0:02:15]}  Rae8 {[%clk 0:02:19]} 18. Rd1 {[%clk 0:02:13]}  Qc6 {[%clk 0:02:15]} 19. Rd5 {[%clk 0:01:28]}  Bd6 {[%clk 0:02:02]} 20. Rg2 {[%clk 0:01:01]}  Bb4 {[%clk 0:01:44]} 21. Rg3 {[%clk 0:00:42]}  Bd6 {[%clk 0:01:43]} 22. Rg2 {[%clk 0:00:42]}  Be5 {[%clk 0:01:21]} 23. Nb5 {[%clk 0:00:23]}  Be4 {[%clk 0:00:57]} 24. Nxa7 {[%clk 0:00:22]}  Qe6 {[%clk 0:00:52]} 25. Rd2 {[%clk 0:00:10]}  Bxg2 {[%clk 0:00:49]} 26. Kxg2 {[%clk 0:00:11]}  Bxb2 {[%clk 0:00:46]} 27. Nb5 {[%clk 0:00:11]}  Be5 {[%clk 0:00:31]} 28. f4 {[%clk 0:00:00]}  Bxf4 {[%clk 0:00:29]} 0-1


[Site "https://www.chess.com"]

[Event "Titled Tuesday Blitz November 07 Early 2023"]
[White "Fernandez Siles, Luis"]
[Black "Belov, Alexei"]
[WhiteFideId "2209420"]
[BlackFideId "4128206"]
[WhiteElo "2317"]
[BlackElo "2575"]
[Result "1-0"]
[Round "9"]
[TimeControl "180+1"]
[Date "2023.11.07"]
[WhiteClock "0:01:13"]
[BlackClock "0:01:09"]
[Board "133"]

1. e4 {[%clk 0:03:00]}  e6 {[%clk 0:02:59]} 2. d4 {[%clk 0:02:59]}  d5 {[%clk 0:03:00]} 3. e5 {[%clk 0:03:00]}  c5 {[%clk 0:02:59]} 4. c3 {[%clk 0:03:00]}  Qb6 {[%clk 0:03:00]} 5. Nf3 {[%clk 0:03:00]}  Nc6 {[%clk 0:03:00]} 6. a3 {[%clk 0:03:00]}  Bd7 {[%clk 0:03:00]} 7. b4 {[%clk 0:03:00]}  cxd4 {[%clk 0:03:00]} 8. cxd4 {[%clk 0:03:00]}  Rc8 {[%clk 0:03:01]} 9. Be3 {[%clk 0:03:00]}  Nh6 {[%clk 0:03:00]} 10. Bd3 {[%clk 0:03:00]}  g6 {[%clk 0:03:00]} 11. O-O {[%clk 0:02:53]}  Ne7 {[%clk 0:03:00]} 12. Qd2 {[%clk 0:02:47]}  Nhf5 {[%clk 0:03:00]} 13. Nc3 {[%clk 0:02:29]}  Nxe3 {[%clk 0:02:57]} 14. fxe3 {[%clk 0:02:29]}  Bh6 {[%clk 0:02:57]} 15. h4 {[%clk 0:02:06]}  O-O {[%clk 0:02:57]} 16. Ng5 {[%clk 0:02:06]}  a6 {[%clk 0:02:39]} 17. Rf3 {[%clk 0:02:03]}  Bb5 {[%clk 0:02:34]} 18. Nxb5 {[%clk 0:02:01]}  axb5 {[%clk 0:02:34]} 19. Raf1 {[%clk 0:02:01]}  Nf5 {[%clk 0:02:33]} 20. Bxf5 {[%clk 0:01:51]}  exf5 {[%clk 0:02:33]} 21. g4 {[%clk 0:01:50]}  Bxg5 {[%clk 0:02:06]} 22. hxg5 {[%clk 0:01:48]}  fxg4 {[%clk 0:02:06]} 23. Rf6 {[%clk 0:01:46]}  Qc7 {[%clk 0:02:04]} 24. Qg2 {[%clk 0:01:42]}  Qc3 {[%clk 0:02:00]} 25. Qg3 {[%clk 0:01:35]}  Rc6 {[%clk 0:01:44]} 26. e6 {[%clk 0:01:24]}  Rxe6 {[%clk 0:01:35]} 27. Rxe6 {[%clk 0:01:24]}  fxe6 {[%clk 0:01:35]} 28. Rxf8+ {[%clk 0:01:24]}  Kxf8 {[%clk 0:01:35]} 29. Qd6+ {[%clk 0:01:24]}  Kf7 {[%clk 0:01:30]} 30. Qd7+ {[%clk 0:01:23]}  Kf8 {[%clk 0:01:29]} 31. Qd8+ {[%clk 0:01:24]}  Kf7 {[%clk 0:01:29]} 32. Qf6+ {[%clk 0:01:24]}  Ke8 {[%clk 0:01:28]} 33. Qxe6+ {[%clk 0:01:22]}  Kd8 {[%clk 0:01:29]} 34. Qxd5+ {[%clk 0:01:21]}  Kc7 {[%clk 0:01:25]} 35. Qc5+ {[%clk 0:01:18]}  Qxc5 {[%clk 0:01:25]} 36. bxc5 {[%clk 0:01:16]}  Kc6 {[%clk 0:01:14]} 37. e4 {[%clk 0:01:15]}  b4 {[%clk 0:01:12]} 38. axb4 {[%clk 0:01:15]}  Kb5 {[%clk 0:01:13]} 39. e5 {[%clk 0:01:15]}  Kc6 {[%clk 0:01:09]} 40. Kg2 {[%clk 0:01:13]} 1-0


[Site "https://www.chess.com"]

[Event "Titled Tuesday Blitz November 07 Early 2023"]
[White "EvgenyBurmakin"]
[Black "Kula, Robert"]
[BlackFideId "1101218"]
[WhiteElo "2354"]
[BlackElo "2249"]
[Result "0-1"]
[Round "9"]
[TimeControl "180+1"]
[Date "2023.11.07"]
[WhiteClock "0:00:00"]
[BlackClock "0:01:29"]
[Board "136"]

1. e4 {[%clk 0:03:00]}  c5 {[%clk 0:02:58]} 2. Nc3 {[%clk 0:03:00]}  Nc6 {[%clk 0:02:58]} 3. Bb5 {[%clk 0:03:00]}  Nd4 {[%clk 0:02:57]} 4. Bc4 {[%clk 0:03:00]}  e6 {[%clk 0:02:57]} 5. Nge2 {[%clk 0:02:53]}  a6 {[%clk 0:02:56]} 6. d3 {[%clk 0:02:43]}  b5 {[%clk 0:02:55]} 7. Bb3 {[%clk 0:02:42]}  d6 {[%clk 0:02:55]} 8. Nxd4 {[%clk 0:02:38]}  cxd4 {[%clk 0:02:54]} 9. Ne2 {[%clk 0:02:38]}  Qb6 {[%clk 0:02:53]} 10. O-O {[%clk 0:02:37]}  Nf6 {[%clk 0:02:52]} 11. c3 {[%clk 0:02:35]}  dxc3 {[%clk 0:02:51]} 12. Be3 {[%clk 0:02:24]}  Qd8 {[%clk 0:02:48]} 13. Nxc3 {[%clk 0:02:24]}  Be7 {[%clk 0:02:48]} 14. a3 {[%clk 0:02:14]}  O-O {[%clk 0:02:48]} 15. d4 {[%clk 0:02:12]}  Bb7 {[%clk 0:02:47]} 16. f3 {[%clk 0:02:13]}  Rc8 {[%clk 0:02:46]} 17. Qd2 {[%clk 0:02:12]}  d5 {[%clk 0:02:44]} 18. e5 {[%clk 0:02:09]}  Nd7 {[%clk 0:02:44]} 19. f4 {[%clk 0:02:07]}  Nb6 {[%clk 0:02:43]} 20. f5 {[%clk 0:01:26]}  exf5 {[%clk 0:02:36]} 21. Rxf5 {[%clk 0:01:25]}  Nc4 {[%clk 0:02:37]} 22. Bxc4 {[%clk 0:01:25]}  dxc4 {[%clk 0:02:36]} 23. d5 {[%clk 0:01:15]}  Bc5 {[%clk 0:02:35]} 24. Bxc5 {[%clk 0:01:04]}  Rxc5 {[%clk 0:02:35]} 25. d6 {[%clk 0:01:04]}  Bc8 {[%clk 0:02:29]} 26. Qd4 {[%clk 0:00:54]}  Bxf5 {[%clk 0:02:07]} 27. Qxc5 {[%clk 0:00:53]}  Re8 {[%clk 0:02:03]} 28. Re1 {[%clk 0:00:49]}  Qh4 {[%clk 0:02:02]} 29. Qf2 {[%clk 0:00:37]}  Qg5 {[%clk 0:01:55]} 30. Nd5 {[%clk 0:00:31]}  Be6 {[%clk 0:01:54]} 31. Nc7 {[%clk 0:00:22]}  Rf8 {[%clk 0:01:49]} 32. Nxe6 {[%clk 0:00:17]}  fxe6 {[%clk 0:01:48]} 33. Qe3 {[%clk 0:00:07]}  Qf5 {[%clk 0:01:42]} 34. h3 {[%clk 0:00:07]}  h5 {[%clk 0:01:41]} 35. Qe2 {[%clk 0:00:06]}  Qf4 {[%clk 0:01:33]} 36. Rf1 {[%clk 0:00:02]}  Qd4+ {[%clk 0:01:33]} 37. Kh1 {[%clk 0:00:01]}  Rxf1+ {[%clk 0:01:32]} 38. Qxf1 {[%clk 0:00:02]}  Qxe5 {[%clk 0:01:32]} 39. d7 {[%clk 0:00:00]}  Qd6 {[%clk 0:01:29]} 0-1


[Site "https://www.chess.com"]

[Event "Titled Tuesday Blitz November 07 Early 2023"]
[White "Estrada Nieto, Julian"]
[Black "Kuchava, Ana"]
[WhiteFideId "5101018"]
[BlackFideId "13605348"]
[WhiteElo "2454"]
[BlackElo "2245"]
[Result "1-0"]
[Round "9"]
[TimeControl "180+1"]
[Date "2023.11.07"]
[WhiteClock "0:01:57"]
[BlackClock "0:00:17"]
[Board "139"]

1. e4 {[%clk 0:02:36]}  c5 {[%clk 0:02:58]} 2. Nf3 {[%clk 0:02:35]}  d6 {[%clk 0:02:57]} 3. d4 {[%clk 0:02:36]}  cxd4 {[%clk 0:02:58]} 4. Qxd4 {[%clk 0:02:36]}  a6 {[%clk 0:02:52]} 5. Bc4 {[%clk 0:02:34]}  e6 {[%clk 0:02:45]} 6. Nc3 {[%clk 0:02:23]}  Nc6 {[%clk 0:02:39]} 7. Qd3 {[%clk 0:02:22]}  Nf6 {[%clk 0:02:37]} 8. Bf4 {[%clk 0:02:21]}  Be7 {[%clk 0:02:34]} 9. O-O-O {[%clk 0:02:20]}  b5 {[%clk 0:01:57]} 10. Bb3 {[%clk 0:02:20]}  b4 {[%clk 0:01:35]} 11. Na4 {[%clk 0:02:17]}  e5 {[%clk 0:01:29]} 12. Bg5 {[%clk 0:02:16]}  Bg4 {[%clk 0:00:49]} 13. Qc4 {[%clk 0:02:05]}  O-O {[%clk 0:00:19]} 14. Qxc6 {[%clk 0:02:04]}  Nxe4 {[%clk 0:00:17]} 15. Bxe7 {[%clk 0:01:57]} 1-0


[Site "https://www.chess.com"]